fUST/lending_fUST_20250823
["ID","MTS","AMOUNT","RATE_DAILY","PERIOD"]
[380870512,1755880845286,-1000.0,0.00027554,2]
[380870513,1755880845311,-1000.0,0.00027554,2]
[380870514,1755880845338,-1000.0,0.00027554,2]
[380870515,1755880845363,-1000.0,0.00027555,2]
[380870516,1755880845386,-1043.55346152,0.00027555,2]
[380870517,1755880845409,-500.0,0.00027558,2]
[380870518,1755880845434,-200.0812057,0.00027587,2]
[380870519,1755880845457,-844.33851978,0.00027644,2]
[380870520,1755880845483,-216.99125601,0.00027644,2]
[380870521,1755880845508,-160.0,0.00027644,2]
[380870522,1755880845532,-12692.97277622,0.00027647,2]
[380870523,1755880845556,-260.0,0.00027804,2]
[380870524,1755880845581,-208.45698865,0.00027832,2]
[380870525,1755880845608,-3870.23258087,0.00027997,2]
[380870526,1755880845636,-528.9579881,0.00028,10]
[380870527,1755880845662,-1500.0,0.00028068,5]
[380870528,1755880845689,-512.06810708,0.00028068,5]
[380870529,1755880845715,-524.60221954,0.00028068,5]
[380870530,1755880845743,-1500.0,0.00028068,5]
[380870531,1755880845772,-1017.96267621,0.00028068,5]
[380870532,1755880845798,-500.0,0.00028068,5]
[380870533,1755880845822,-484.46874701,0.00028342,5]
[380870534,1755880845849,-360.0,0.00028352,2]
[380870535,1755880845875,-300.14391798,0.00028427,2]
[380870536,1755880845900,-500.0,0.00028473,5]
[380870537,1755880845925,-500.0,0.00028473,5]
[380870538,1755880845950,-500.0,0.00028473,5]
[380870539,1755880845975,-500.0,0.00028473,2]
[380870540,1755880845999,-500.0,0.00028473,5]
[380870541,1755880846024,-500.0,0.00028473,5]
[380870542,1755880846048,-500.0,0.00028473,5]
[380870543,1755880846074,-493.46776726,0.00028473,5]
[380870544,1755880846097,-500.0,0.00028473,5]
[380870545,1755880846121,-2675.55006684,0.0002849,2]
[380870546,1755880846145,-153.0,0.000285,7]
[380870547,1755880846168,-153.0,0.000285,7]
[380870548,1755880846191,-153.0,0.000285,7]
[380870549,1755880846217,-153.0,0.000285,7]
[380870550,1755880846308,-153.0,0.000285,7]
[380870551,1755880846338,-329.84,0.0002856,10]
[380870552,1755880846363,-310.0,0.00028562,2]
[380870553,1755880846388,-100946.82001,0.0002857,2]
[380870554,1755880846411,-500.0,0.00028573,5]
[380870555,1755880846436,-500.0,0.00028573,5]
[380870556,1755880846461,-500.0,0.00028573,5]
[380870557,1755880846484,-500.0,0.00028573,5]
[380870558,1755880846508,-500.0,0.00028573,5]
[380870559,1755880846533,-500.93493547,0.00028573,5]
[380870560,1755880846557,-500.0,0.00028573,5]
[380870561,1755880846583,-500.0,0.00028573,5]
[380870562,1755880846607,-500.0,0.00028573,5]
[380870563,1755880846635,-500.0,0.00028573,5]
[380870564,1755880846660,-500.0,0.00028573,5]
[380870565,1755880846685,-500.0,0.00028573,5]
[380870566,1755880846712,-500.0,0.00028573,5]
[380870567,1755880846736,-500.0,0.00028573,5]
[380870568,1755880846760,-500.0,0.00028573,5]
[380870569,1755880846782,-500.0,0.00028573,5]
[380870570,1755880846805,-500.0,0.00028573,5]
[380870571,1755880846828,-503.38074451,0.00028573,5]
[380870572,1755880846852,-500.0,0.00028573,5]
[380870573,1755880846877,-500.0,0.00028573,5]
[380870574,1755880846900,-500.0,0.00028573,5]
[380870575,1755880846925,-455.74850963,0.00028579,2]
[380870576,1755880846949,-151.0,0.0002858,7]
[380870577,1755880846973,-151.0,0.0002858,7]
[380870578,1755880846998,-151.0,0.0002858,7]
[380870579,1755880847022,-151.0,0.0002858,7]
[380870580,1755880847046,-151.0,0.0002858,7]
[380870581,1755880847070,-151.0,0.0002858,7]
[380870582,1755880847094,-151.0,0.0002858,7]
[380870583,1755880847120,-151.0,0.0002858,7]
[380870584,1755880847144,-151.0,0.0002858,7]
[380870585,1755880847167,-152.932953,0.0002858,7]
[380870586,1755880847191,-2186.12599,0.0002858,2]
[380870587,1755880847216,-957.78,0.0002858,3]
[380870588,1755880847241,-478.89,0.0002858,3]
[380870589,1755880847265,-239.44,0.0002858,3]
[380870590,1755880847290,-239.44,0.0002858,3]
[380870591,1755880847314,-403787.280041,0.0002858,2]
[380870592,1755880847338,-3000.0,0.000286,2]
[380870593,1755880847363,-175.05,0.000286,7]
[380870594,1755880847389,-24561.58,0.000286,2]
[380870595,1755880847413,-2859.87,0.000286,7]
[380870596,1755880847436,-1302.82,0.000286,7]
[380870597,1755880847460,-151.0,0.000286,7]
[380870598,1755880847484,-151.0,0.000286,7]
[380870599,1755880847512,-151.0,0.000286,17]
[380870600,1755880847537,-151.0,0.000286,13]
[380870601,1755880847561,-151.0,0.000286,18]
[380870602,1755880847585,-151.0,0.000286,20]
[380870603,1755880847609,-151.0,0.000286,7]
[380870604,1755880847715,-151.0,0.000286,7]
[380870605,1755880847739,-151.0,0.000286,7]
[380870606,1755880847762,-151.0,0.000286,7]
[380870607,1755880847786,-151.356198,0.000286,7]
[380870608,1755880847809,-151.0,0.000286,7]
[380870609,1755880847832,-151.0,0.000286,7]
[380870610,1755880847857,-151.0,0.000286,7]
[380870611,1755880847885,-152.927246,0.000286,7]
[380870612,1755880847909,-192.172348,0.000286,7]
[380870613,1755880847933,-151.0,0.000286,7]
[380870614,1755880847957,-152.403116,0.000286,7]
[380870615,1755880847982,-151.0,0.000286,7]
[380870616,1755880848005,-151.0,0.000286,7]
[380870617,1755880848030,-151.0,0.000286,7]
[380870618,1755880848056,-151.0,0.000286,7]
[380870619,1755880848081,-151.0,0.000286,7]
[380870620,1755880848107,-151.0,0.000286,7]
[380870621,1755880848132,-151.0,0.000286,7]
[380870622,1755880848157,-151.0,0.000286,7]
[380870623,1755880848182,-160.0,0.000286,30]
[380870624,1755880848207,-160.0,0.000286,30]
[380870625,1755880848234,-151.0,0.000286,7]
[380870626,1755880848259,-151.0,0.000286,7]
[380870627,1755880848283,-151.0,0.000286,7]
[380870628,1755880848310,-151.0,0.000286,7]
[380870629,1755880848336,-151.0,0.000286,7]
[380870630,1755880848362,-151.0,0.000286,7]
[380870631,1755880848386,-232.32572668,0.000286,7]
[380870632,1755880848411,-151.0,0.000286,16]
[380870633,1755880848435,-151.0,0.000286,16]
[380870634,1755880848460,-151.0,0.000286,17]
[380870635,1755880848485,-151.0,0.000286,10]
[380870636,1755880848510,-151.0,0.000286,20]
[380870637,1755880848534,-151.0,0.000286,7]
[380870638,1755880848564,-151.0,0.000286,7]
[380870639,1755880848591,-151.0,0.000286,7]
[380870640,1755880848619,-151.0,0.000286,7]
[380870641,1755880848645,-151.0,0.000286,7]
[380870642,1755880848672,-151.0,0.000286,7]
[380870643,1755880848698,-151.0,0.000286,7]
[380870644,1755880848726,-151.0,0.000286,7]
[380870645,1755880848751,-151.0,0.000286,7]
[380870646,1755880848777,-151.915607,0.000286,7]
[380870647,1755880848804,-151.88639,0.000286,7]
[380870648,1755880848832,-151.0,0.000286,7]
[380870649,1755880848862,-151.0,0.000286,7]
[380870650,1755880848889,-151.0,0.000286,7]
[380870651,1755880848918,-151.0,0.000286,7]
[380870652,1755880848945,-151.0,0.000286,7]
[380870653,1755880848970,-417.15472785,0.000286,7]
[380870654,1755880848994,-151.0,0.000286,7]
[380870655,1755880849097,-417.15472785,0.000286,30]
[380870656,1755880849125,-151.0,0.000286,7]
[380870657,1755880849152,-151.0,0.000286,7]
[380870658,1755880849178,-151.0,0.000286,7]
[380870659,1755880849204,-151.0,0.000286,7]
[380870660,1755880849228,-160.0,0.000286,7]
[380870661,1755880849252,-216.99125601,0.000286,7]
[380870662,1755880849277,-215.90555669,0.000286,7]
[380870663,1755880849302,-376.07413479,0.000286,7]
[380870664,1755880849325,-2000.0,0.00028616,5]
[380870665,1755880849349,-2000.0,0.00028616,5]
[380870666,1755880849375,-151.0,0.00028653,7]
[380870667,1755880849398,-194.820171,0.00028653,7]
[380870668,1755880849423,-151.0,0.00028653,7]
[380870669,1755880849449,-151.0,0.00028653,7]
[380870670,1755880849475,-151.0,0.00028653,7]
[380870671,1755880849498,-151.0,0.00028653,7]
[380870672,1755880849524,-151.0,0.00028653,7]
[380870673,1755880849549,-151.0,0.00028653,7]
[380870674,1755880849574,-151.0,0.00028653,7]
[380870675,1755880849598,-151.0,0.00028653,7]
[380870676,1755880849628,-151.0,0.00028653,7]
[380870677,1755880849653,-151.0,0.00028653,7]
[380870678,1755880849678,-179.779616,0.00028653,7]
[380870679,1755880849707,-151.0,0.00028653,7]
[380870680,1755880849733,-151.0,0.00028653,7]
[380870681,1755880849759,-151.0,0.00028653,7]
[380870682,1755880849783,-151.0,0.00028653,7]
[380870683,1755880849808,-160.0,0.00028653,7]
[380870684,1755880849832,-151.0,0.00028653,7]
[380870685,1755880849859,-151.0,0.00028653,7]
[380870686,1755880849883,-151.0,0.00028653,7]
[380870687,1755880849908,-151.0,0.00028653,7]
[380870688,1755880849933,-151.0,0.00028653,7]
[380870689,1755880849958,-151.0,0.00028653,7]
[380870690,1755880849982,-151.0,0.00028654,7]
[380870691,1755880850006,-151.0,0.00028654,7]
[380870692,1755880850031,-151.0,0.00028654,7]
[380870693,1755880850055,-151.707149,0.00028654,7]
[380870694,1755880850080,-151.0,0.00028654,7]
[380870695,1755880850104,-500.0,0.00028673,5]
[380870696,1755880850130,-360.27169985,0.00028673,5]
[380870697,1755880850154,-500.0,0.00028673,5]
[380870698,1755880850178,-299.2959534,0.00028673,5]
[380870699,1755880850202,-500.0,0.00028673,5]
[380870700,1755880850226,-500.0,0.00028673,5]
[380870701,1755880850249,-500.0,0.00028673,5]
[380870702,1755880850272,-500.0,0.00028673,5]
[380870703,1755880850296,-500.0,0.00028673,5]
[380870704,1755880850322,-151.0,0.00028674,7]
[380870705,1755880850425,-151.0,0.00028674,7]
[380870706,1755880850450,-151.0,0.00028674,7]
[380870707,1755880850476,-151.0,0.00028674,7]
[380870708,1755880850503,-151.0,0.00028674,7]
[380870709,1755880850531,-151.0,0.00028674,7]
[380870710,1755880850559,-151.0,0.00028674,7]
[380870711,1755880850586,-151.0,0.00028674,7]
[380870712,1755880850613,-151.0,0.00028674,7]
[380870713,1755880850640,-151.0,0.00028674,7]
[380870714,1755880850665,-151.0,0.00028674,7]
[380870715,1755880850691,-204.064806,0.00028674,7]
[380870716,1755880850717,-460.0,0.000289,2]
[380870717,1755880850742,-500.0,0.00028908,2]
[380870718,1755880850769,-500.0,0.00028973,5]
[380870719,1755880850795,-500.0,0.00028973,5]
[380870720,1755880850821,-500.0,0.00028973,5]
[380870721,1755880850845,-1078.20443966,0.00029021,5]
[380870722,1755880850871,-1000.0,0.00029021,5]
[380870723,1755880850896,-753.5188575,0.00029021,5]
[380870724,1755880850920,-1000.0,0.00029021,2]
[380870725,1755880850945,-500.0,0.00029021,5]
[380870726,1755880850969,-501.62154399,0.00029021,5]
[380870727,1755880850995,-1000.0,0.00029021,5]
[380870728,1755880851021,-1000.0,0.00029021,5]
[380870729,1755880851046,-844.40837171,0.00029121,5]
[380870730,1755880851070,-339.65981581,0.00029121,5]
[380870731,1755880851095,-992.12546401,0.00029121,5]
[380870732,1755880851120,-1000.0,0.00029121,5]
[380870733,1755880851144,-1000.0,0.00029121,5]
[380870734,1755880851167,-1000.0,0.00029121,5]
[380870735,1755880851192,-1001.01715711,0.00029121,5]
[380870736,1755880851215,-760.95941026,0.00029121,5]
[380870737,1755880851239,-1000.0,0.00029121,5]
[380870738,1755880851262,-500.0,0.00029121,5]
[380870739,1755880851285,-1000.0,0.00029121,5]
[380870740,1755880851309,-1000.0,0.00029121,5]
[380870741,1755880851332,-1000.0,0.00029121,5]
[380870742,1755880851359,-1000.0,0.00029121,5]
[380870743,1755880851383,-1000.0,0.00029121,5]
[380870744,1755880851406,-1000.0,0.00029121,5]
[380870745,1755880851430,-1000.0,0.00029121,5]
[380870746,1755880851455,-1003.97999172,0.00029121,5]
[380870747,1755880851480,-420.0,0.0002916,2]
[380870748,1755880851505,-2000.0,0.00029164,5]
[380870749,1755880851529,-2500.0,0.00029164,5]
[380870750,1755880851553,-500.0,0.00029173,5]
[380870751,1755880851577,-500.0,0.00029173,5]
[380870752,1755880851601,-500.0,0.00029173,5]
[380870753,1755880851704,-500.0,0.00029173,5]
[380870754,1755880851729,-334.54178551,0.00029221,5]
[380870755,1755880851753,-1000.0,0.00029221,5]
[380870756,1755880851777,-1000.0,0.00029221,5]
[380870757,1755880851803,-1000.0,0.00029221,5]
[380870758,1755880851827,-206.90087136,0.00029221,5]
[380870759,1755880851852,-500.0,0.00029221,5]
[380870760,1755880851879,-560.0,0.00029448,2]
[380870761,1755880851903,-1000.0,0.00029521,5]
[380870762,1755880851928,-1000.0,0.00029521,5]
[380870763,1755880851952,-749.65345509,0.00029521,5]
[380870764,1755880851977,-241.18104537,0.00029549,2]
[380870765,1755880852001,-500.0,0.00029551,2]
[380870766,1755880852026,-1086.63384438,0.00029568,5]
[380870767,1755880852050,-1500.0,0.00029568,2]
[380870768,1755880852075,-1500.0,0.00029568,5]
[380870769,1755880852100,-449.36891552,0.00029568,5]
[380870770,1755880852131,-500.0,0.00029573,5]
[380870771,1755880852157,-500.0,0.00029573,5]
[380870772,1755880852185,-500.0,0.00029573,5]
[380870773,1755880852211,-151.0,0.00029668,14]
[380870774,1755880852235,-151.0,0.00029668,14]
[380870775,1755880852259,-151.0,0.00029668,14]
[380870776,1755880852284,-151.0,0.00029668,14]
[380870777,1755880852308,-151.0,0.00029668,14]
[380870778,1755880852331,-151.0,0.00029668,14]
[380870779,1755880852355,-151.0,0.00029668,14]
[380870780,1755880852387,-151.0,0.00029668,14]
[380870781,1755880852413,-232.99864,0.00029668,14]
[380870782,1755880852439,-151.0,0.00029668,7]
[380870783,1755880852464,-151.0,0.00029668,7]
[380870784,1755880852493,-151.0,0.00029668,7]
[380870785,1755880852518,-151.0,0.00029668,7]
[380870786,1755880852543,-151.0,0.00029668,7]
[380870787,1755880852569,-151.0,0.00029668,7]
[380870788,1755880852594,-151.0,0.00029668,7]
[380870789,1755880852622,-295.792276,0.00029668,7]
[380870790,1755880852650,-151.0,0.00029668,7]
[380870791,1755880852675,-200.0,0.00029668,7]
[380870792,1755880852699,-200.0,0.00029668,7]
[380870793,1755880852723,-200.0,0.00029668,7]
[380870794,1755880852746,-200.0,0.00029668,7]
[380870795,1755880852769,-200.0,0.00029668,7]
[380870796,1755880852794,-1500.0,0.00029668,5]
[380870797,1755880852817,-1500.0,0.00029668,5]
[380870798,1755880852841,-1500.0,0.00029668,5]
[380870799,1755880852938,-1500.0,0.00029668,5]
[380870800,1755880852962,-1500.0,0.00029668,5]
[380870801,1755880852984,-1500.0,0.00029668,5]
[380870802,1755880853008,-1645.85746645,0.00029668,5]
[380870803,1755880853032,-151.0,0.00029712,7]
[380870804,1755880853056,-151.0,0.00029712,7]
[380870805,1755880853081,-151.0,0.00029712,7]
[380870806,1755880853105,-151.0,0.00029712,7]
[380870807,1755880853135,-151.0,0.00029712,7]
[380870808,1755880853158,-151.0,0.00029712,7]
[380870809,1755880853182,-151.0,0.00029712,7]
[380870810,1755880853207,-151.0,0.00029712,7]
[380870811,1755880853230,-272.54462,0.00029712,7]
[380870812,1755880853254,-151.0,0.00029712,7]
[380870813,1755880853278,-151.0,0.00029712,7]
[380870814,1755880853301,-3097.34826501,0.00029712,5]
[380870815,1755880853324,-1000.0,0.00029721,5]
[380870816,1755880853348,-1000.0,0.00029721,5]
[380870817,1755880853372,-500.0,0.00029721,5]
[380870818,1755880853396,-1500.0,0.00029768,5]
[380870819,1755880853420,-385.06922325,0.00029768,5]
[380870820,1755880853443,-501.26613932,0.00029768,5]
[380870821,1755880853466,-1915.56,0.0002995,3]
[380870822,1755880853489,-957.78,0.0002995,3]
[380870823,1755880853512,-478.88,0.0002995,3]
[380870824,1755880853537,-478.88,0.0002995,3]
[380870825,1755880853561,-660.0,0.00029996,2]
[380870826,1755880853891,199.0,0.00026649,20]
[380870827,1755880853925,283.587,0.00026973,15]
[380870828,1755880854263,274.86,0.00028664,10]
[380870829,1755880854385,151.0,0.0002858,7]
[380870830,1755880859372,254.818577,0.0002858,7]
[380870831,1755880860826,5000.0,0.0003,2]
[380870832,1755880862601,229.05,0.00028664,10]
[380870833,1755880864207,300.0,0.00028673,2]
[380870834,1755880871862,155.43,0.000287,7]
[380870835,1755880872022,542.18365533,0.00028574,2]
[380870836,1755880872519,1153.7,0.000287,7]
[380870837,1755880874318,190.88,0.00028664,10]
[380870838,1755880876528,1947.92097698,0.0003,2]
[380870841,1755880886861,159.07,0.00028664,10]
[380870851,1755881432483,-215.90555669,0.00025,10]
[380870852,1755881432492,-300.0,0.00026899,2]
[380870855,1755881432502,-6710.91708376,0.000269,2]
[380870857,1755881432596,-417.15472785,0.00027,3]
[380870859,1755881432605,-218.76622444,0.00027306,91]
[380870861,1755881432615,-300.0,0.00027406,20]
[380870863,1755881432624,-300.0,0.00027406,20]
[380870865,1755881432636,-300.0,0.00027406,20]
[380870867,1755881432645,-300.0,0.00027406,20]
[380870869,1755881432655,-300.0,0.00027406,20]
[380870871,1755881432665,-300.0,0.00027406,20]
[380870873,1755881432674,-300.0,0.00027406,20]
[380870874,1755881432683,-151.565341,0.00027408,20]
[380870875,1755881432692,-151.565341,0.00027408,20]
[380870876,1755881432702,-500.0,0.00027475,5]
[380870877,1755881432711,-160.0,0.0002765,2]
[380870878,1755881432720,-160.0,0.00027773,2]
[380870879,1755881432729,-300.0,0.00027953,20]
[380870880,1755881432739,-300.0,0.00027953,20]
[380870881,1755881432748,-300.0,0.00027953,20]
[380870882,1755881432759,-300.0,0.00027953,20]
[380870883,1755881432768,-300.0,0.00027953,20]
[380870884,1755881432778,-300.0,0.00027953,20]
[380870886,1755881432792,-300.0,0.00027953,20]
[380870888,1755881432802,-528.9579881,0.00028,10]
[380870890,1755881432811,-417.15472785,0.00028,10]
[380870891,1755881432820,-500.0,0.00028023,5]
[380870894,1755881432830,-20697.45877417,0.00028564,2]
[380870896,1755881432842,-1542.5903362,0.00028564,2]
[380870898,1755881432851,-2997.71988628,0.00028574,2]
[380870900,1755881432863,-160.43447877,0.00028607,2]
[380870902,1755881432873,-151.66,0.00028654,3]
[380870904,1755881432883,-455.0,0.00028654,3]
[380870905,1755881432893,-795.35,0.00028654,10]
[380870907,1755881432901,-59128.11701342,0.00028664,2]
[380870909,1755881432912,-11810.06482009,0.00028664,2]
[380871377,1755881440558,-199.0,0.000249,10]
[380871379,1755881440568,-99450.17413736,0.00028664,2]
[380871692,1755881443494,-17241.412472,0.00028664,2]
[380871696,1755881443528,-4288.37645961,0.00028664,2]
[380872052,1755881447191,-11108.23952195,0.00028664,2]
[380874071,1755881898588,5000.0,0.000236,2]
[380874072,1755881913992,1947.92097698,0.000236,2]
[380874082,1755882327832,371.74279351,0.00027397,120]
[380874083,1755882547653,697.0,0.000236,2]
[380874421,1755882637711,-180.72788511,0.00024104,2]
[380874422,1755882637721,-116.70931459,0.00024153,2]
[380874674,1755882643228,-3832.44558651,0.00024153,2]
[380875174,1755882648767,-1050.8450989,0.00024153,2]
[380875176,1755882648777,-354.19190053,0.00024204,2]
[380875178,1755882648787,-300.0,0.00024897,2]
[380875180,1755882648797,-300.0,0.00024897,2]
[380875182,1755882648806,-1200.0,0.00024898,2]
[380875184,1755882648815,-1200.0,0.00024899,2]
[380875185,1755882648825,-8319.03405704,0.000249,2]
[380875187,1755882648834,-500.79919152,0.000249,2]
[380875189,1755882648844,-180.72788511,0.00025472,2]
[380875191,1755882648853,-774.16300182,0.00026544,7]
[380875193,1755882648863,-180.72788511,0.0002684,2]
[380875195,1755882648872,-5268.45135525,0.0002694,2]
[380875197,1755882648884,-8087.18579842,0.0002694,2]
[380876972,1755882674868,400.0,0.0001,2]
[380876978,1755882777255,749.015291,0.00023474,2]
[380876979,1755882778979,6092.51009556,0.00027397,120]
[380877000,1755883011493,160.0,0.0002,3]
[380877007,1755883650841,4101.60301984,0.0001922,2]
[380877009,1755883693942,220.78397816,0.00021,5]
[380877010,1755883693983,7836.93263051,0.00021,5]
[380877011,1755883700480,999.999999,0.00023,2]
[380877014,1755883717607,2021.71441065,0.0002,2]
[380877020,1755883726570,10033.02350774,0.00019,2]
[380877021,1755883756808,-2762.8264596,0.00024,60]
[380877022,1755883756832,-523.68624849,0.0002407,2]
[380877023,1755883756856,-715.30927302,0.0002407,2]
[380877024,1755883756881,-374.507646,0.00024153,2]
[380877025,1755883756904,-3000.0,0.000242,2]
[380877026,1755883756936,-580.2694693,0.00024425,2]
[380877027,1755883756961,-300.0,0.00024599,2]
[380877028,1755883756987,-77117.37446213,0.000246,2]
[380877029,1755883757010,-2000.0,0.000249,10]
[380877030,1755883757034,-1200.0,0.00024999,2]
[380877031,1755883757058,-3157.2103377,0.00025,2]
[380877032,1755883757082,-208.27,0.0002517,10]
[380877033,1755883757106,-173.56,0.0002517,10]
[380877034,1755883757130,-867.84,0.0002517,10]
[380877035,1755883757154,-2000.0,0.0002518,2]
[380877036,1755883757197,-2000.0,0.0002518,2]
[380877037,1755883757243,-216.5,0.0002518,2]
[380877038,1755883757284,-5514.57402236,0.0002518,2]
[380877039,1755883757323,-501.10520505,0.000252,2]
[380877040,1755883757362,-372.20081797,0.000252,2]
[380877041,1755883757407,-276.69297712,0.00025336,2]
[380877042,1755883757447,-1105.66513658,0.00025336,2]
[380877043,1755883757488,-285.56892751,0.00025336,2]
[380877044,1755883757528,-1141.13343431,0.00025336,2]
[380877045,1755883757566,-500.0,0.0002535,2]
[380877046,1755883757612,-500.0,0.0002535,2]
[380877047,1755883757655,-500.0,0.0002535,2]
[380877048,1755883757702,-500.0,0.0002535,2]
[380877049,1755883757738,-500.0,0.00025491,2]
[380877050,1755883757774,-500.0,0.00025496,2]
[380877051,1755883757809,-500.0,0.00025533,2]
[380877052,1755883757846,-500.0,0.00025533,2]
[380877053,1755883757967,-500.0,0.00025533,2]
[380877054,1755883757990,-500.0,0.00025533,2]
[380877055,1755883758012,-500.0,0.00025533,2]
[380877056,1755883758039,-500.0,0.00025533,2]
[380877057,1755883758063,-500.0,0.0002555,2]
[380877058,1755883758088,-500.0,0.0002555,2]
[380877059,1755883758112,-500.0,0.0002555,2]
[380877060,1755883758138,-500.0,0.0002555,2]
[380877061,1755883758163,-151.177441,0.00025841,10]
[380877062,1755883758184,-1000.0,0.00025898,2]
[380877063,1755883758208,-1093.062995,0.0002599,2]
[380877064,1755883758231,-20721.81047915,0.0002599,2]
[380877065,1755883758255,-317.703,0.00025996,12]
[380877066,1755883758280,-1000.0,0.00026081,2]
[380877067,1755883758305,-1000.0,0.00026081,2]
[380877068,1755883758329,-1000.0,0.00026098,2]
[380877069,1755883758352,-501.14541372,0.00026098,2]
[380877070,1755883758379,-1500.0,0.00026446,2]
[380877071,1755883758404,-500.0,0.00026579,2]
[380877072,1755883758430,-507.38843515,0.00026629,2]
[380877073,1755883758455,-1500.0,0.00026629,2]
[380877074,1755883758484,-1500.0,0.00026646,2]
[380877075,1755883758509,-420.0,0.0002666,2]
[380877076,1755883758534,-500.0,0.0002675,2]
[380877077,1755883758561,-4207.962308,0.00026798,2]
[380877078,1755883758586,-151.0,0.000268,19]
[380877079,1755883758610,-500.0,0.00026873,2]
[380877080,1755883758636,-500.0,0.00026873,2]
[380877081,1755883758661,-508.40628027,0.00026873,2]
[380877082,1755883758688,-500.0,0.00026873,2]
[380877083,1755883758712,-503.43957847,0.00026873,2]
[380877084,1755883758736,-3634.19416543,0.00026873,2]
[380877085,1755883758760,-319.02395675,0.00026879,2]
[380877086,1755883758784,-500.0,0.00026879,2]
[380877087,1755883758808,-500.0,0.00026879,2]
[380877088,1755883758832,-502.75536387,0.00026879,2]
[380877089,1755883758856,-500.0,0.00026879,2]
[380877090,1755883758881,-500.0,0.00026879,2]
[380877091,1755883758905,-500.0,0.00026879,2]
[380877092,1755883758932,-500.0,0.00026879,2]
[380877093,1755883759014,-500.0,0.00026879,2]
[380877094,1755883759053,-212.31373553,0.00026879,2]
[380877095,1755883759078,-500.0,0.00026879,2]
[380877096,1755883759101,-317.19180027,0.00026879,2]
[380877097,1755883759126,-561.94709128,0.00026879,2]
[380877098,1755883759150,-500.0,0.00026879,2]
[380877099,1755883759177,-188.16354887,0.00026879,2]
[380877100,1755883759202,-459784.391426,0.0002688,2]
[380877101,1755883759226,-206.55227114,0.0002688,2]
[380877102,1755883759250,-370000.0,0.0002689,2]
[380877103,1755883759274,-500.0,0.00026973,2]
[380877104,1755883759298,-500.0,0.00026973,2]
[380877105,1755883759322,-500.0,0.00026973,2]
[380877106,1755883759345,-500.0,0.00026973,2]
[380877107,1755883759368,-500.0,0.00026973,2]
[380877108,1755883759391,-500.0,0.00026973,2]
[380877109,1755883759417,-500.0,0.00026973,2]
[380877110,1755883759440,-500.0,0.00026973,2]
[380877111,1755883759466,-500.0,0.00026973,2]
[380877112,1755883759490,-500.0,0.00026973,2]
[380877113,1755883759514,-500.0,0.00026973,2]
[380877114,1755883759538,-500.0,0.00026973,2]
[380877115,1755883759563,-500.0,0.00026973,2]
[380877116,1755883759586,-500.0,0.00026973,2]
[380877117,1755883759609,-502.46079315,0.00026973,2]
[380877118,1755883759634,-500.0,0.00026973,2]
[380877119,1755883759657,-500.0,0.00026973,2]
[380877120,1755883759682,-151.0,0.00026983,2]
[380877121,1755883759705,-151.0,0.00026983,2]